fUST/lending_fUST_20240909
["ID","MTS","AMOUNT","RATE_DAILY","PERIOD"]
[337588774,1725868244400,-9093.65,0.00040647,30]
[337588775,1725868244409,-884.34,0.00040647,30]
[337588776,1725868244419,-500.0,0.00040647,30]
[337588777,1725868244428,-500.0,0.00040647,30]
[337588778,1725868244437,-500.0,0.00040647,30]
[337588779,1725868244446,-500.0,0.00040647,30]
[337588780,1725868244458,-502.08844306,0.00040647,30]
[337588781,1725868244469,-521.75146082,0.00040647,30]
[337588782,1725868244481,-500.0,0.00040647,30]
[337588783,1725868244490,-500.0,0.00040647,30]
[337588784,1725868244499,-553.36,0.00040647,30]
[337588785,1725868244510,-500.1644477,0.00040647,30]
[337588786,1725868244522,-500.0,0.00040647,30]
[337588787,1725868244533,-500.0,0.00040647,30]
[337588788,1725868244542,-504.22030287,0.00040647,30]
[337588789,1725868244552,-624.39502448,0.00040647,30]
[337588790,1725868244562,-500.0,0.00040647,30]
[337588791,1725868244572,-500.0,0.00040647,30]
[337588792,1725868244581,-1156.3,0.00040647,30]
[337588793,1725868244590,-500.0,0.00040647,30]
[337588794,1725868244600,-500.0,0.00040647,30]
[337588795,1725868244610,-500.0,0.00040647,30]
[337588796,1725868244619,-500.0,0.00040647,30]
[337588797,1725868244629,-500.0,0.00040647,30]
[337588798,1725868244639,-500.0,0.00040647,30]
[337588799,1725868244648,-1905.0,0.00040647,30]
[337588800,1725868244658,-212.52688726,0.00040647,30]
[337588801,1725868244925,-287.47311274,0.00040647,30]
[337588802,1725868244935,-847.02,0.00040647,30]
[337588803,1725868244945,-500.0,0.00040647,30]
[337588804,1725868244956,-500.0,0.00040647,30]
[337588805,1725868244966,-503.01378336,0.00040647,30]
[337588806,1725868244976,-500.0,0.00040647,30]
[337588807,1725868244986,-743.95,0.00040647,30]
[337588808,1725868244997,-787.63,0.00040647,30]
[337588809,1725868245007,-500.0,0.00040647,30]
[337588810,1725868245019,-1167.71,0.00040647,30]
[337588811,1725868245029,-500.0,0.00040647,30]
[337588812,1725868245038,-500.0,0.00040647,30]
[337588813,1725868245047,-254.546444,0.00040647,14]
[337588814,1725868245057,-500.0,0.00040647,30]
[337588815,1725868245070,-883.67,0.00040647,30]
[337588816,1725868245079,-745.84,0.00040647,30]
[337588817,1725868245088,-254.546436,0.00040647,14]
[337588818,1725868245098,-501.39097544,0.00040647,30]
[337588819,1725868245108,-505.20000706,0.00040647,30]
[337588820,1725868245290,-500.0,0.00040647,30]
[337588821,1725868245301,-500.0,0.00040647,30]
[337588822,1725868245311,-510.1,0.00040647,30]
[337588823,1725868245320,-1094.56,0.00040647,30]
[337588824,1725868245330,-1137.12,0.00040647,30]
[337588825,1725868245339,-517.58,0.00040647,30]
[337588826,1725868245349,-501.01035668,0.00040647,30]
[337588827,1725868245358,-500.0,0.00040647,30]
[337588828,1725868245367,-502.16095731,0.00040647,30]
[337588829,1725868245377,-501.73824365,0.00040647,30]
[337588830,1725868245386,-500.0,0.00040647,30]
[337588831,1725868245395,-500.0,0.00040647,30]
[337588832,1725868245405,-500.0,0.00040647,30]
[337588833,1725868245414,-500.0,0.00040647,30]
[337588834,1725868245423,-500.0,0.00040647,30]
[337588835,1725868245433,-500.0,0.00040647,30]
[337588836,1725868245444,-500.0,0.00040647,30]
[337588837,1725868245454,-500.0,0.00040647,30]
[337588838,1725868245466,-500.0,0.00040647,30]
[337588839,1725868245477,-500.0,0.00040647,30]
[337588840,1725868245486,-789.01,0.00040647,30]
[337588841,1725868245495,-500.0,0.00040647,30]
[337588842,1725868245505,-335.27202658,0.00040647,30]
[337588843,1725868245515,-500.0,0.00040647,30]
[337588844,1725868245524,-500.0,0.00040647,30]
[337588845,1725868245534,-500.28688569,0.00040647,30]
[337588846,1725868245543,-2167.77,0.00040647,30]
[337588847,1725868245553,-500.0,0.00040647,30]
[337588848,1725868245562,-508.52349011,0.00040647,30]
[337588849,1725868245572,-500.0,0.00040647,30]
[337588850,1725868245582,-736.78,0.00040647,30]
[337588851,1725868245591,-500.0,0.00040647,30]
[337588852,1725868245601,-500.0,0.00040647,30]
[337588853,1725868245611,-501.79348152,0.00040647,30]
[337588854,1725868245621,-500.0,0.00040647,30]
[337588855,1725868245630,-1774.894287,0.00040648,14]
[337588856,1725868245640,-1774.894287,0.00040648,14]
[337588857,1725868245651,-167.749523,0.00040648,14]
[337588858,1725868245662,-167.749523,0.00040648,14]
[337588859,1725868245672,-151.0,0.00040648,14]
[337588860,1725868245681,-624.46709452,0.00040673,5]
[337588861,1725868245691,-500.0,0.00040673,5]
[337588862,1725868245700,-310.8157173,0.00040673,5]
[337588863,1725868245709,-1068.80898226,0.00040716,2]
[337588864,1725868245719,-1774.894287,0.00040717,14]
[337588865,1725868245732,-1774.894287,0.00040717,14]
[337588866,1725868245743,-1774.894287,0.00040717,14]
[337588867,1725868245752,-1774.894287,0.00040717,14]
[337588868,1725868245762,-167.749523,0.00040717,14]
[337588869,1725868245772,-167.749523,0.00040717,14]
[337588870,1725868245782,-167.749523,0.00040717,14]
[337588871,1725868245792,-167.749523,0.00040717,14]
[337588872,1725868245802,-151.0,0.00040717,14]
[337588873,1725868245812,-151.0,0.00040717,14]
[337588874,1725868245822,-1774.894287,0.00040726,14]
[337588875,1725868245831,-1774.894295,0.00040726,14]
[337588876,1725868245842,-167.749523,0.00040726,14]
[337588877,1725868245852,-167.749523,0.00040726,14]
[337588878,1725868245862,-167.749523,0.00040726,14]
[337588879,1725868245871,-167.749525,0.00040726,14]
[337588880,1725868245881,-151.0,0.00040726,14]
[337588881,1725868245890,-151.0,0.00040726,14]
[337588882,1725868245899,-500.0,0.00040735,30]
[337588883,1725868245909,-500.0,0.00040735,30]
[337588884,1725868245919,-531.6190356,0.00040735,30]
[337588885,1725868245928,-500.0,0.00040735,30]
[337588886,1725868245937,-500.0,0.00040735,30]
[337588887,1725868245947,-500.0,0.00040735,30]
[337588888,1725868245957,-500.0,0.00040735,30]
[337588889,1725868245966,-500.0,0.00040735,30]
[337588890,1725868245976,-500.0,0.00040735,30]
[337588891,1725868245986,-500.0,0.00040735,30]
[337588892,1725868245995,-500.0,0.00040735,30]
[337588893,1725868246005,-500.0,0.00040735,30]
[337588894,1725868246015,-500.0,0.00040735,30]
[337588895,1725868246024,-500.0,0.00040735,30]
[337588896,1725868246033,-500.0,0.00040735,30]
[337588897,1725868246044,-500.0,0.00040735,30]
[337588898,1725868246054,-151.0,0.00040736,14]
[337588899,1725868246067,-151.0,0.00040736,14]
[337588900,1725868246076,-151.0,0.00040736,14]
[337588901,1725868246085,-151.0,0.00040736,14]
[337588902,1725868246095,-151.0,0.00040736,14]
[337588904,1725868246104,-151.0,0.00040736,14]
[337588905,1725868246113,-151.0,0.00040736,14]
[337588906,1725868246122,-151.0,0.00040736,14]
[337588907,1725868246132,-151.0,0.00040736,14]
[337588908,1725868246141,-151.0,0.00040736,14]
[337588909,1725868246150,-151.0,0.00040736,14]
[337588910,1725868246160,-151.0,0.00040736,14]
[337588911,1725868246169,-151.0,0.00040736,14]
[337588912,1725868246178,-197.648065,0.00040736,14]
[337588913,1725868246188,-151.0,0.00040736,14]
[337588914,1725868246197,-151.0,0.00040736,14]
[337588915,1725868246206,-151.0,0.00040736,14]
[337588916,1725868246216,-151.0,0.00040736,14]
[337588917,1725868246224,-151.0,0.00040736,14]
[337588918,1725868246234,-151.0,0.00040736,14]
[337588919,1725868246243,-151.0,0.00040736,14]
[337588920,1725868246252,-151.0,0.00040736,14]
[337588921,1725868246262,-258.498015,0.00040736,14]
[337588922,1725868246272,-508.06642066,0.00040736,30]
[337588923,1725868246282,-502.38025334,0.00040736,30]
[337588924,1725868246291,-151.0,0.00040736,14]
[337588925,1725868246300,-151.0,0.00040736,14]
[337588926,1725868246309,-151.0,0.00040736,14]
[337588927,1725868246319,-151.0,0.00040736,14]
[337588928,1725868246328,-151.0,0.00040736,14]
[337588929,1725868246338,-151.0,0.00040736,14]
[337588930,1725868246347,-151.0,0.00040736,14]
[337588931,1725868246358,-151.0,0.00040736,14]
[337588932,1725868246367,-500.0,0.00040736,30]
[337588933,1725868246377,-2287.88,0.00040736,30]
[337588934,1725868246386,-500.0,0.00040736,30]
[337588935,1725868246395,-500.0,0.00040736,30]
[337588936,1725868246405,-500.0,0.00040736,30]
[337588937,1725868246414,-501.07539123,0.00040736,30]
[337588938,1725868246424,-500.0,0.00040736,30]
[337588939,1725868246433,-500.0,0.00040736,30]
[337588940,1725868246443,-1385.79,0.00040736,30]
[337588941,1725868246452,-500.0,0.00040736,30]
[337588942,1725868246462,-500.0,0.00040736,30]
[337588943,1725868246472,-922.3,0.00040736,30]
[337588944,1725868246482,-500.0,0.00040736,30]
[337588945,1725868246491,-988.1,0.00040736,30]
[337588946,1725868246501,-500.0,0.00040736,30]
[337588947,1725868246511,-500.0,0.00040736,30]
[337588948,1725868246522,-547.79,0.00040736,30]
[337588949,1725868246533,-500.0,0.00040736,30]
[337588950,1725868246544,-2188.47,0.00040736,30]
[337588951,1725868246554,-500.0,0.00040736,30]
[337588952,1725868246564,-1681.01,0.00040736,30]
[337588953,1725868246573,-2049.61,0.00040736,30]
[337588954,1725868246582,-500.0,0.00040736,30]
[337588955,1725868246592,-500.0,0.00040736,30]
[337588956,1725868246602,-500.0,0.00040736,30]
[337588957,1725868246611,-500.0,0.00040736,30]
[337588958,1725868246621,-500.0,0.00040736,30]
[337588959,1725868246631,-599.81,0.00040736,30]
[337588960,1725868246640,-561.15,0.00040736,30]
[337588961,1725868246651,-500.0,0.00040736,30]
[337588962,1725868246660,-575.37,0.00040736,30]
[337588963,1725868246671,-1007.98,0.00040736,30]
[337588964,1725868246680,-507.88103644,0.00040736,30]
[337588965,1725868246690,-1781.14,0.00040736,30]
[337588966,1725868246699,-4679.18,0.00040736,30]
[337588967,1725868246709,-500.0,0.00040736,30]
[337588968,1725868246718,-500.0,0.00040736,30]
[337588969,1725868246728,-500.0,0.00040736,30]
[337588970,1725868246738,-680.86,0.00040736,30]
[337588971,1725868246747,-670.67,0.00040736,30]
[337588972,1725868246757,-1430.88,0.00040736,30]
[337588973,1725868246766,-1295.39,0.00040736,30]
[337588974,1725868246776,-712.56,0.00040736,30]
[337588975,1725868246786,-742.89,0.00040736,30]
[337588976,1725868246796,-640.61,0.00040736,30]
[337588977,1725868246805,-2216.09,0.00040736,30]
[337588978,1725868246815,-500.0,0.00040736,30]
[337588979,1725868246825,-500.0,0.00040736,30]
[337588980,1725868246834,-1918.47,0.00040736,30]
[337588981,1725868246843,-910.96,0.00040736,30]
[337588982,1725868246853,-500.0,0.00040736,30]
[337588983,1725868246862,-622.38,0.00040736,30]
[337588984,1725868246872,-500.0,0.00040736,30]
[337588985,1725868246882,-639.2,0.00040736,2]
[337588986,1725868246891,-198.25793709,0.00040736,30]
[337588987,1725868246901,-522.14,0.00040736,30]
[337588988,1725868246910,-500.0,0.00040736,30]
[337588989,1725868246920,-695.88,0.00040736,30]
[337588990,1725868246929,-500.0,0.00040736,30]
[337588991,1725868246938,-503.05275265,0.00040736,30]
[337588992,1725868246948,-151.0,0.00040737,14]
[337588993,1725868246957,-151.0,0.00040737,14]
[337588994,1725868246967,-151.0,0.00040737,14]
[337588995,1725868246976,-212.229401,0.00040737,14]
[337588996,1725868246986,-500.0,0.00040747,30]
[337588997,1725868246996,-500.0,0.00040747,30]
[337588998,1725868247006,-151.0,0.00040748,14]
[337588999,1725868247018,-151.0,0.00040748,14]
[337589000,1725868247035,-180.497787,0.00040748,14]
[337589001,1725868247048,-151.0,0.00040748,14]
[337589002,1725868247058,-151.0,0.00040748,14]
[337589003,1725868247069,-151.0,0.00040748,14]
[337589004,1725868247078,-500.0,0.00040757,30]
[337589005,1725868247087,-500.0,0.00040757,30]
[337589006,1725868247097,-198.01738721,0.00040757,30]
[337589007,1725868247106,-500.0,0.00040757,30]
[337589008,1725868247117,-500.0,0.00040757,30]
[337589009,1725868247127,-220.83639589,0.00040757,30]
[337589010,1725868247136,-500.0,0.00040757,30]
[337589011,1725868247149,-479.31269855,0.00040757,30]
[337589012,1725868247159,-151.0,0.00040758,14]
[337589013,1725868247168,-151.0,0.00040758,14]
[337589014,1725868247178,-151.0,0.00040758,14]
[337589015,1725868247187,-151.0,0.00040758,14]
[337589016,1725868247197,-151.0,0.00040758,14]
[337589017,1725868247206,-151.0,0.00040758,14]
[337589018,1725868247215,-151.0,0.00040758,14]
[337589019,1725868247224,-151.0,0.00040758,14]
[337589020,1725868247234,-151.0,0.00040758,14]
[337589021,1725868247243,-151.0,0.00040758,14]
[337589022,1725868247252,-151.0,0.00040758,14]
[337589023,1725868247261,-151.0,0.00040758,14]
[337589024,1725868247273,-151.0,0.00040758,14]
[337589025,1725868247283,-151.0,0.00040758,14]
[337589026,1725868247292,-151.0,0.00040758,14]
[337589027,1725868247301,-151.0,0.00040758,14]
[337589028,1725868247310,-151.0,0.00040758,14]
[337589029,1725868247320,-151.0,0.00040758,14]
[337589030,1725868247329,-151.0,0.00040758,14]
[337589031,1725868247338,-229.639802,0.00040758,14]
[337589032,1725868247348,-2600.33,0.00040758,30]
[337589033,1725868247358,-500.27548472,0.00040758,30]
[337589034,1725868247367,-500.69600853,0.00040758,30]
[337589035,1725868247376,-175.74119185,0.00040758,30]
[337589036,1725868247385,-500.0,0.00040758,30]
[337589037,1725868247394,-503.02549289,0.00040758,30]
[337589038,1725868247403,-500.0,0.00040758,30]
[337589039,1725868247413,-500.0,0.00040758,30]
[337589040,1725868247422,-505.09988545,0.00040758,30]
[337589041,1725868247431,-841.19,0.00040758,30]
[337589042,1725868247440,-500.0,0.00040758,30]
[337589043,1725868247449,-738.46,0.00040758,30]
[337589044,1725868247458,-503.21246827,0.00040758,30]
[337589045,1725868247467,-500.0,0.00040758,30]
[337589046,1725868247476,-726.85,0.00040758,7]
[337589047,1725868247485,-509.8,0.00040758,30]
[337589048,1725868247494,-500.0,0.00040758,30]
[337589049,1725868247503,-503.11618682,0.00040758,30]
[337589050,1725868247512,-413.89825578,0.00040758,30]
[337589051,1725868247526,-500.0,0.00040758,30]
[337589052,1725868247535,-501.86628336,0.00040758,30]
[337589053,1725868247546,-551.69796033,0.00040758,30]
[337589054,1725868247555,-500.0,0.00040758,30]
[337589055,1725868247565,-500.0,0.00040758,30]
[337589056,1725868247575,-500.0,0.00040758,30]
[337589057,1725868247584,-813.11,0.00040758,30]
[337589058,1725868247593,-500.0,0.00040758,30]
[337589059,1725868247603,-952.24,0.00040758,30]
[337589060,1725868247612,-500.0,0.00040758,30]
[337589061,1725868247622,-340.09263935,0.00040758,30]
[337589062,1725868247631,-504.94604433,0.00040758,30]
[337589063,1725868247640,-500.0,0.00040758,30]
[337589064,1725868247649,-500.0,0.00040758,30]
[337589065,1725868247659,-500.0,0.00040758,30]
[337589066,1725868247710,-500.0,0.00040758,30]
[337589067,1725868247721,-501.6954888,0.00040758,30]
[337589068,1725868247730,-500.85100851,0.00040758,30]
[337589069,1725868247739,-500.0,0.00040758,30]
[337589070,1725868247748,-500.0,0.00040758,30]
[337589071,1725868247758,-500.0,0.00040758,30]
[337589072,1725868247769,-564.76,0.00040758,30]
[337589073,1725868247779,-502.27827561,0.00040758,30]
[337589074,1725868247789,-1359.66,0.00040758,2]
[337589075,1725868247798,-501.11129532,0.00040758,30]
[337589076,1725868247808,-500.0,0.00040758,30]
[337589077,1725868247818,-165.08189432,0.00040758,30]
[337589078,1725868247828,-1055.43,0.00040758,30]
[337589079,1725868247838,-1055.43,0.00040758,30]
[337589080,1725868247848,-500.0,0.00040758,30]
[337589081,1725868247858,-500.0,0.00040758,30]
[337589082,1725868247867,-500.0,0.00040758,30]
[337589083,1725868247876,-500.0,0.00040758,30]
[337589084,1725868247886,-1275.48,0.00040758,7]
[337589085,1725868247895,-500.0,0.00040758,30]
[337589086,1725868247904,-500.0,0.00040758,30]
[337589087,1725868247914,-508.9550842,0.00040758,30]
[337589088,1725868247923,-500.0,0.00040758,30]
[337589089,1725868247932,-500.0,0.00040758,30]
[337589090,1725868247943,-901.41,0.00040758,30]
[337589091,1725868247953,-224.62075419,0.00040758,30]
[337589092,1725868247962,-2814.44,0.00040758,30]
[337589093,1725868247971,-500.0,0.00040758,30]
[337589094,1725868247981,-520.67122878,0.00040758,30]
[337589095,1725868247990,-500.0,0.00040758,30]
[337589096,1725868248001,-502.3065198,0.00040758,30]
[337589097,1725868248010,-500.0,0.00040758,30]
[337589098,1725868248021,-221.58185396,0.00040758,30]
[337589099,1725868248031,-1323.75,0.00040758,30]
[337589100,1725868248041,-500.0,0.00040758,30]
[337589101,1725868248051,-579.0,0.00040758,30]
[337589102,1725868248065,-519.14736405,0.00040758,30]
[337589103,1725868248074,-504.94583808,0.00040758,30]
[337589104,1725868248085,-505.37585411,0.00040758,30]
[337589105,1725868248095,-465.5881438,0.00040758,30]
[337589106,1725868248105,-500.0,0.00040758,30]
[337589107,1725868248115,-500.0,0.00040758,30]
[337589108,1725868248124,-500.0,0.00040758,30]
[337589109,1725868248134,-500.0,0.00040758,30]
[337589110,1725868248144,-500.0,0.00040758,30]
[337589111,1725868248154,-402.45824973,0.00040758,30]
[337589112,1725868248171,-97.54175027,0.00040758,30]
[337589113,1725868248180,-500.0,0.00040758,30]
[337589114,1725868248189,-339.84352121,0.00040758,2]
[337589115,1725868248205,-160.15647879,0.00040758,2]
[337589116,1725868248215,-500.0,0.00040758,30]
[337589117,1725868248224,-548.62,0.00040758,30]
[337589118,1725868248234,-502.4530466,0.00040758,30]
[337589119,1725868248243,-500.0,0.00040758,30]
[337589120,1725868248253,-470.36570879,0.00040758,30]
[337589121,1725868248934,-48.72121797,0.00040497,3]
[337589122,1725868249708,-63.41951463,0.00040497,3]
[337589123,1725868280945,308.9501335,0.00037709,2]
[337589124,1725868289919,299.2,0.00035616,120]
[337589195,1725869137156,-411.00963073,0.0003974,2]
[337589196,1725869137177,-306.0,0.0004,2]
[337589197,1725869137198,-208.2649181,0.0004,2]
[337589198,1725869137219,-208.2649181,0.0004,2]
[337589199,1725869137240,-207.9526142,0.0004,2]
[337589200,1725869137261,-193.71737524,0.00040383,2]
[337589201,1725869137291,-193.71737523,0.00040386,2]
[337589202,1725869137312,-193.71737523,0.00040389,2]
[337589203,1725869137333,-193.71737523,0.00040391,2]
[337589204,1725869137353,-499.86012,0.00040393,31]
[337589205,1725869137374,-193.71737523,0.00040394,2]
[337589206,1725869137394,-2909.11231541,0.00040394,60]
[337589207,1725869152131,-3672.71981879,0.00040394,60]
[337589261,1725869237107,-599.57856553,0.00040387,2]
[337589262,1725869237422,-1931.52016147,0.00040394,60]
[337589265,1725869244014,10000.0,0.0003002,2]
[337589266,1725869244113,-569.39962303,0.00040394,60]
[337589272,1725869391710,1000.0,0.00039,20]
[337589273,1725869404296,1000.0,0.00038,20]
[337589316,1725869431974,-500.0,0.0004,120]
[337589318,1725869431985,-938.60242926,0.0004,2]
[337589320,1725869431995,-1098.90154422,0.000403,2]
[337589322,1725869432005,-1576.35237264,0.0004031,28]
[337589324,1725869432015,-492.63,0.00040384,3]
[337589326,1725869432024,-246.31,0.00040384,3]
[337589328,1725869432034,-738.98,0.00040384,3]
[337589330,1725869432047,-224.35,0.00040384,3]
[337589332,1725869432056,-186.96,0.00040384,3]
[337589334,1725869432065,-3615.03,0.00040393,30]
[337589336,1725869432075,-3474.20817244,0.00040393,30]
[337589439,1725869437931,-4442.19182756,0.00040393,30]
[337589441,1725869437940,-1376.97,0.00040393,30]
[337589442,1725869437949,-539.89541016,0.00040393,30]
[337589443,1725869437959,-1657.73,0.00040393,30]
[337589444,1725869437968,-303.09125998,0.00040393,30]
[337589445,1725869437980,-1036.03874002,0.00040393,30]
[337589446,1725869437990,-1544.81,0.00040393,30]
[337589447,1725869438000,-1115.4,0.00040393,30]
[337589448,1725869438009,-500.0,0.00040393,30]
[337589449,1725869438019,-981.14,0.00040393,30]
[337589451,1725869438029,-500.0,0.00040394,120]
[337589453,1725869438038,-79805.2480813,0.00040394,60]
[337589454,1725869438049,-500.0,0.0004041,14]
[337589456,1725869438058,-155.8,0.00040447,3]
[337589458,1725869438067,-234.34334857,0.00040456,31]
[337589459,1725869438076,-292.44066434,0.00040456,31]
[337589460,1725869438086,-454.12303849,0.00040456,31]
[337589461,1725869438096,-500.0,0.00040456,31]
[337589462,1725869438106,-500.0,0.00040456,31]
[337589463,1725869438115,-561.706113,0.00040456,31]
[337589464,1725869438125,-20497.98735828,0.00040457,5]
[337589465,1725869438320,-635.45015474,0.00040457,5]
[337589466,1725869439164,370.17,0.00039,20]
[337589468,1725869439892,-3386.3408564,0.00040457,5]
[337589502,1725869442882,-2756.95,0.00040457,5]
[337589503,1725869442955,-2250.13550225,0.00040457,5]
[337589537,1725869483939,165.129754,0.00035727,2]
[337589541,1725869557101,545.23456824,0.0003002,2]
[337589585,1725870397275,-264.60676072,0.00035601,2]
[337589589,1725870436102,-253.1098727,0.00035601,2]
[337589593,1725870469301,-1464.25488752,0.0003212,10]
[337589596,1725870523577,19230.03360756,0.0002,2]
[337589598,1725870547139,-297.3298942,0.00035812,2]
[337589599,1725870547161,-400.0,0.00035999,2]
[337589600,1725870547183,-300.0,0.00035999,2]
[337589601,1725870547205,-5000.0,0.00036,2]
[337589602,1725870547229,-230.9289806,0.00036359,2]
[337589603,1725870547251,-671.5034,0.00037206,30]
[337589604,1725870547271,-706.918206,0.00038665,2]
[337589605,1725870547291,-2786.0,0.00039,60]
[337589606,1725870557323,961.412687,0.00036989,2]
[337589607,1725870585429,195.458579,0.0003739,2]
[337589608,1725870585590,195.458579,0.00037492,2]
[337589609,1725870585829,195.458579,0.00037595,2]
[337589610,1725870586040,195.458579,0.00037697,2]
[337589611,1725870586273,195.458579,0.000378,2]
[337589612,1725870586497,195.458579,0.00037902,2]
[337589613,1725870586917,195.458579,0.00038005,2]
[337589614,1725870586991,195.458579,0.00038107,2]
[337589615,1725870587227,195.458579,0.0003821,2]
[337589616,1725870587445,195.458579,0.00038313,2]
[337589617,1725870587651,195.458579,0.00038415,2]
[337589618,1725870587848,195.458579,0.00038518,2]
[337589619,1725870588170,195.458579,0.0003862,2]
[337589620,1725870588401,195.458579,0.00038723,2]
[337589621,1725870588591,195.458579,0.00038825,2]
[337589622,1725870589065,195.458579,0.00038928,2]
[337589623,1725870589213,195.458579,0.0003903,2]
[337589624,1725870589434,195.458579,0.00039133,2]
[337589625,1725870589647,195.458579,0.00039235,2]
[337589626,1725870589863,195.458579,0.00039338,2]
[337589627,1725870593112,514.08356756,0.0003722,2]
[337589628,1725870593133,3499.679078,0.0003722,2]
[337589629,1725870593157,4166.08179763,0.0003722,2]
[337589630,1725870593180,1519.73945302,0.0003722,2]
[337589637,1725870623669,-670.75020942,0.0004,120]
[337589638,1725870623695,-3170.97573144,0.0004,30]
[337589639,1725870623719,-12772.38471197,0.00040165,30]
[337589640,1725870623744,-1068.93,0.00040272,30]
[337589641,1725870623769,-164.040344,0.00040282,31]
[337589642,1725870623796,-204.70846504,0.00040282,31]
[337589643,1725870623822,-593.1942791,0.00040282,31]
[337589644,1725870623846,-317.88612695,0.00040282,31]
[337589645,1725870623871,-500.0,0.00040282,31]
[337589646,1725870623900,-3464.4,0.00040282,30]
[337589647,1725870623925,-7586.55,0.00040282,30]
[337589648,1725870623949,-1319.6,0.00040282,30]
[337589649,1725870623973,-1588.65,0.00040282,30]
[337589650,1725870623997,-1048.65,0.00040282,30]
[337589651,1725870624021,-88888.0,0.00040283,60]
[337589652,1725870624047,-500.0,0.00040356,30]
[337589653,1725870624072,-500.0,0.00040356,30]
[337589654,1725870624098,-500.0,0.00040356,30]
[337589655,1725870624123,-2607.18,0.00040356,30]
[337589656,1725870624147,-1446.42,0.00040356,30]
[337589657,1725870624171,-500.0,0.00040356,30]
[337589658,1725870624197,-500.0,0.00040356,30]
[337589659,1725870624222,-732.44,0.00040356,30]
[337589660,1725870624246,-500.0,0.00040356,30]
[337589661,1725870624271,-624.9,0.00040356,30]
[337589662,1725870624299,-557.31,0.00040356,30]
[337589663,1725870624324,-500.0,0.00040356,30]
[337589664,1725870624350,-182.6482129,0.00040356,30]
[337589665,1725870624374,-1735.51,0.00040356,30]
[337589666,1725870624398,-1283.33,0.00040356,30]
[337589667,1725870624423,-283.62431612,0.00040356,30]
[337589668,1725870624447,-500.0,0.00040356,30]
[337589669,1725870624472,-500.0,0.00040356,30]
[337589670,1725870624496,-500.0,0.00040356,30]
[337589671,1725870624522,-10614.35,0.00040356,30]
[337589672,1725870624552,-5607.86,0.00040356,30]
[337589673,1725870624577,-500.0,0.00040356,30]
[337589674,1725870624602,-1235.75,0.00040356,30]
[337589675,1725870624627,-1504.56,0.00040356,30]
[337589676,1725870624658,-5242.27,0.00040356,30]
[337589677,1725870624684,-500.0,0.00040356,30]
[337589678,1725870624710,-500.0,0.00040356,30]
[337589679,1725870624737,-1804.21,0.00040356,30]
[337589680,1725870624763,-1315.04,0.00040356,30]
[337589681,1725870624788,-500.0,0.00040356,30]
[337589682,1725870624817,-500.0,0.00040356,30]
[337589683,1725870624843,-2095.25,0.00040356,30]
[337589684,1725870624867,-500.0,0.00040356,30]
[337589685,1725870624892,-1827.27,0.00040356,30]
[337589686,1725870624917,-500.0,0.00040356,30]
[337589687,1725870624943,-500.0,0.00040356,30]
[337589688,1725870624968,-1034.47,0.00040356,30]
[337589689,1725870624996,-2498.81,0.00040356,30]
[337589690,1725870625021,-654.93,0.00040356,30]
[337589691,1725870625048,-4000.0,0.00040356,60]